bitfinex/quotes_BTCUSD_20250221
["timestamp","ask_amount","ask_price","bid_price","bid_amount"]
[1740168926645,0.05653407,95474.0,95468.0,0.01454085]
[1740168926856,0.05653407,95474.0,95470.0,0.01454085]
[1740168927034,0.05653407,95474.0,95462.0,0.0811]
[1740168927035,0.05653407,95474.0,95472.0,0.01454085]
[1740168927231,0.0008501,95501.0,95473.0,0.11718654]
[1740168927580,0.157076,95495.0,95477.0,0.01454085]
[1740168927780,0.01079627,95497.0,95479.0,0.01454085]
[1740168927981,0.1579313,95492.0,95481.0,0.01454085]
[1740168928186,0.0008503,95492.0,95482.0,0.10264569]
[1740168928385,0.2102933,95492.0,95482.0,0.10264569]
[1740168928592,0.157089,95488.0,95482.0,0.10264569]
[1740168928786,0.00098073,95492.0,95476.0,0.1263]
[1740168928989,0.15711,95474.0,95473.0,0.001]
[1740168929719,0.15211,95474.0,95473.0,0.001]
[1740168929924,0.3672275,95476.0,95473.0,0.001]
[1740168930148,0.3672274,95486.0,95465.0,0.01454085]
[1740168930389,0.00098073,95492.0,95482.0,0.001]
[1740168930784,0.209446,95490.0,95482.0,0.001]
[1740168930941,0.00098073,95492.0,95469.0,0.01454085]
[1740168930942,0.157088,95488.0,95469.0,0.01454085]
[1740168931138,0.157086,95489.0,95473.0,0.008]
[1740168931369,0.00098073,95492.0,95473.0,0.008]
[1740168931370,0.00098073,95492.0,95476.0,0.0812]
[1740168931570,0.00098073,95492.0,95477.0,0.1184432]
[1740168931978,0.00098073,95492.0,95483.0,0.01454085]
[1740168932181,0.00098073,95492.0,95485.0,0.01454085]
[1740168932362,0.00098073,95492.0,95487.0,0.01454085]
[1740168932564,0.00098073,95492.0,95489.0,0.01454085]
[1740168932765,0.00098073,95492.0,95491.0,0.17162285]
[1740168932986,0.00098073,95492.0,95491.0,0.50156854]
[1740168933579,0.00098073,95492.0,95491.0,0.34448654]
[1740168934192,0.00098073,95492.0,95491.0,0.34848654]
[1740168934439,0.00098073,95492.0,95491.0,0.33694569]
[1740168935832,0.00098073,95492.0,95491.0,0.35148654]
[1740168936034,0.00098073,95492.0,95491.0,0.51456854]
[1740168937006,0.00098073,95492.0,95491.0,0.56376854]
[1740168937215,0.00098073,95492.0,95491.0,0.88516854]
[1740168937441,0.0008501,95501.0,95500.0,0.386768]
[1740168937647,0.0008501,95501.0,95500.0,0.90908516]
[1740168937989,0.00085,95526.0,95525.0,0.233426]
[1740168938166,0.00128492,95526.0,95525.0,0.35061254]
[1740168938408,0.00128492,95526.0,95525.0,0.19358654]
[1740168938902,0.00128492,95526.0,95525.0,0.35061254]
[1740168939103,0.00128492,95526.0,95525.0,0.50061254]
[1740168939698,0.00128492,95526.0,95525.0,0.34358654]
[1740168939907,0.00128492,95526.0,95525.0,0.50061254]
[1740168940239,0.00128492,95526.0,95525.0,0.82201254]
[1740168940424,0.00128492,95526.0,95525.0,0.86711254]
[1740168940633,0.00128492,95526.0,95525.0,0.88111254]
[1740168940839,0.00128492,95526.0,95525.0,0.72408654]
[1740168941046,0.00128492,95526.0,95525.0,0.88111254]
[1740168942285,0.00128492,95526.0,95525.0,0.87411254]
[1740168942738,0.00128492,95526.0,95525.0,1.43011254]
[1740168942946,0.00128492,95526.0,95525.0,1.44411254]
[1740168943353,0.00128492,95526.0,95525.0,1.41711254]
[1740168943553,0.00128492,95526.0,95525.0,1.42411254]
[1740168943866,0.00128492,95526.0,95525.0,1.43111254]
[1740168944086,0.00128492,95526.0,95525.0,1.44485763]
[1740168944264,0.00128492,95526.0,95525.0,1.43085763]
[1740168944463,0.00128492,95526.0,95525.0,1.43785763]
[1740168944691,0.00128492,95526.0,95525.0,0.73783163]
[1740168944886,0.00128492,95526.0,95525.0,0.89485763]
[1740168945313,0.00128492,95526.0,95525.0,0.87411254]
[1740168945816,0.00128492,95526.0,95525.0,0.86711254]
[1740168946069,0.00128492,95526.0,95525.0,0.88111254]
[1740168946526,0.00128492,95526.0,95525.0,0.87411254]
[1740168946724,0.00128492,95526.0,95525.0,0.88811254]
[1740168947325,0.00128492,95526.0,95525.0,0.88111254]
[1740168947545,0.00128492,95526.0,95525.0,0.71708654]
[1740168947746,0.00128492,95526.0,95525.0,0.87411254]
[1740168947948,0.00128492,95526.0,95525.0,0.88111254]
[1740168948677,0.00128492,95526.0,95525.0,0.87411254]
[1740168949216,0.0008512,95529.0,95525.0,0.72408654]
[1740168949423,0.0009816,95529.0,95528.0,0.52650854]
[1740168950433,0.0009816,95529.0,95528.0,1.39090854]
[1740168950840,0.0009816,95529.0,95528.0,1.39790854]
[1740168951172,0.0009816,95529.0,95528.0,1.40490854]
[1740168951519,0.0009816,95529.0,95528.0,0.83490854]
[1740168952083,0.0009816,95529.0,95528.0,0.65634569]
[1740168952300,0.0009816,95529.0,95528.0,0.67036769]
[1740168952621,0.0009816,95529.0,95528.0,0.67088654]
[1740168952913,0.0009816,95529.0,95528.0,0.43104569]
[1740168953043,0.0009816,95529.0,95528.0,0.43804569]
[1740168953241,0.0009816,95529.0,95528.0,0.43104569]
[1740168953765,0.0009816,95529.0,95528.0,0.45258654]
[1740168953982,0.0009816,95529.0,95528.0,0.60960854]
[1740168954144,0.0009816,95529.0,95528.0,0.61660854]
[1740168954489,0.0009816,95529.0,95528.0,0.45958654]
[1740168955216,0.0009816,95529.0,95528.0,0.45258654]
[1740168955438,0.0009816,95529.0,95528.0,0.44504569]
[1740168956168,0.00578076,95529.0,95528.0,0.12364569]
[1740168956796,0.00578076,95529.0,95528.0,0.13818654]
[1740168957339,0.00578076,95529.0,95528.0,0.29520854]
[1740168957638,0.00578076,95529.0,95528.0,0.13818654]
[1740168958358,0.00578076,95529.0,95528.0,0.29520854]
[1740168958687,0.00578076,95529.0,95528.0,0.13818654]
[1740168959046,0.00578076,95529.0,95528.0,0.12364569]
[1740168959047,0.16280076,95529.0,95528.0,0.12364569]
[1740168959228,0.16280076,95529.0,95528.0,0.021]
[1740168959429,0.00578076,95529.0,95528.0,0.021]
[1740168960035,0.16280076,95529.0,95528.0,0.021]
[1740168960447,0.16280076,95529.0,95528.0,0.007]
[1740168960668,0.00578076,95529.0,95528.0,0.011]
[1740168960886,0.00578076,95529.0,95528.0,0.00571366]
[1740168961043,0.00578076,95529.0,95528.0,0.1229002]
[1740168961247,0.16280076,95529.0,95528.0,0.00571366]
[1740168961687,0.37280556,95529.0,95528.0,0.004]
[1740168961897,0.00578076,95529.0,95528.0,0.10664569]
[1740168962069,0.00578076,95529.0,95528.0,0.28320854]
[1740168962374,0.00578076,95529.0,95528.0,0.12618654]
[1740168962721,0.00578076,95529.0,95528.0,0.42946454]
[1740168962943,0.00578076,95529.0,95528.0,0.42420854]
[1740168963070,0.00578076,95529.0,95528.0,0.43020854]
[1740168963674,0.00578076,95529.0,95528.0,0.42920854]
[1740168964086,0.00578076,95529.0,95528.0,0.27918654]
[1740168964368,0.00578076,95529.0,95528.0,0.12918654]
[1740168965231,0.00578076,95529.0,95528.0,0.10964569]
[1740168965430,0.00578076,95529.0,95528.0,0.014]
[1740168965431,0.16380076,95529.0,95528.0,0.014]
[1740168965635,0.00678076,95529.0,95528.0,0.014]
[1740168966049,0.16380076,95529.0,95528.0,0.014]
[1740168966252,0.16280076,95529.0,95528.0,0.007]
[1740168966453,0.00578076,95529.0,95516.0,0.01454085]
[1740168966657,0.16280076,95529.0,95528.0,0.009]
[1740168966860,0.00578076,95529.0,95528.0,0.02354085]
[1740168967063,0.00578076,95529.0,95528.0,0.27920854]
[1740168967321,0.00578076,95529.0,95528.0,0.43420854]
[1740168967850,0.00578076,95529.0,95528.0,0.75560854]
[1740168968061,0.00578076,95529.0,95528.0,0.79380854]
[1740168968464,0.0008506,95557.0,95556.0,0.306976]
[1740168968660,0.0008506,95557.0,95556.0,0.50456254]
[1740168969348,0.0008506,95557.0,95556.0,0.55176254]
[1740168969736,0.0008506,95557.0,95556.0,0.34758654]
[1740168969939,0.0008506,95557.0,95556.0,0.51056254]
[1740168970118,0.0018506,95557.0,95556.0,0.27318654]
[1740168970320,0.0018506,95557.0,95556.0,0.43016254]
[1740168970531,0.0018506,95557.0,95556.0,0.28018654]
[1740168970736,0.0018506,95557.0,95556.0,0.10864569]
[1740168970936,0.1588246,95557.0,95556.0,0.006]
[1740168971156,0.2075246,95557.0,95556.0,0.013]
[1740168971362,0.2065246,95557.0,95556.0,0.007]
[1740168971757,0.2065246,95557.0,95556.0,0.014]
[1740168972159,0.2065246,95557.0,95556.0,0.007]
[1740168972367,0.156995,95544.0,95524.0,0.0768]
[1740168972683,0.16786097,95540.0,95525.0,0.42404569]
[1740168973082,0.157012,95534.0,95525.0,0.42404569]
[1740168973291,0.157012,95534.0,95526.0,0.01454085]
[1740168973492,0.157012,95534.0,95528.0,0.01454085]
[1740168973827,0.157012,95534.0,95515.0,0.0796]
[1740168973828,0.157017,95531.0,95515.0,0.0796]
[1740168974029,0.209316,95549.0,95517.0,0.15]
[1740168974229,0.16786097,95550.0,95520.0,0.01454085]
[1740168974469,0.16786097,95550.0,95526.0,0.01454085]
[1740168974676,0.209318,95548.0,95528.0,0.01454085]
[1740168974807,0.157009,95536.0,95529.0,0.10264569]
[1740168974991,0.15701,95535.0,95529.0,0.10264569]
[1740168975223,0.157008,95537.0,95529.0,0.10264569]
[1740168975452,0.209321,95547.0,95529.0,0.10264569]
[1740168975911,0.157003,95540.0,95529.0,0.10264569]
[1740168976258,0.0829,95551.0,95530.0,0.16454085]
[1740168976259,0.156984,95551.0,95530.0,0.16454085]
[1740168976459,0.156983,95552.0,95532.0,0.01454085]
[1740168976663,0.0495506,95557.0,95534.0,0.01454085]
[1740168976868,0.0495506,95557.0,95536.0,0.01454085]
[1740168977073,0.16786097,95550.0,95537.0,0.10264569]
[1740168977278,0.157,95542.0,95537.0,0.10264569]
[1740168977480,0.157005,95538.0,95537.0,0.10264569]
[1740168979014,1.20309234,95560.0,95537.0,0.10264569]
[1740168979194,0.16786097,95560.0,95537.0,0.10264569]
[1740168979352,0.156998,95543.0,95537.0,0.10264569]
[1740168979553,0.0505506,95557.0,95537.0,0.10664569]
[1740168979758,0.157005,95538.0,95537.0,0.10664569]
[1740168979976,0.209328,95544.0,95537.0,0.10664569]
[1740168980174,0.0495506,95557.0,95537.0,0.10664569]
[1740168980175,0.157005,95538.0,95537.0,0.10664569]
[1740168980380,0.157005,95538.0,95537.0,0.004]
[1740168980996,0.16942332,95538.0,95537.0,0.007]
[1740168981209,0.21705309,95538.0,95537.0,0.007]
[1740168981825,0.21705309,95538.0,95537.0,0.003]
[1740168981826,0.206205,95538.0,95537.0,0.003]
[1740168982027,0.206205,95538.0,95537.0,0.005]
[1740168982249,0.157005,95538.0,95537.0,0.002]
[1740168982369,0.20934,95538.0,95522.0,0.01454085]
[1740168982573,0.209342,95537.0,95524.0,0.01454085]
[1740168982814,0.157025,95526.0,95525.0,0.10264569]
[1740168983013,0.01037418,95542.0,95525.0,0.10264569]
[1740168983211,0.11444415,95549.0,95537.0,0.003]
[1740168983530,0.157005,95538.0,95537.0,0.003]
[1740168983729,0.3670272,95538.0,95537.0,0.001]
[1740168983949,0.5240322,95538.0,95537.0,0.001]
[1740168984919,0.3670272,95538.0,95525.0,0.004]
[1740168985121,0.157025,95526.0,95525.0,0.004]
[1740168985330,0.209357,95531.0,95515.0,0.00043492]
[1740168985539,0.209357,95531.0,95517.0,0.01454085]
[1740168985729,0.157026,95526.0,95519.0,0.01454085]
[1740168985930,0.16786097,95540.0,95520.0,0.10264569]
[1740168986083,0.157013,95533.0,95520.0,0.10264569]
[1740168986283,0.00781631,95546.0,95520.0,0.10264569]
[1740168986531,0.157022,95528.0,95520.0,0.10264569]
[1740168986710,0.30189479,95545.0,95520.0,0.10264569]
[1740168987010,0.157023,95527.0,95520.0,0.10264569]
[1740168987405,0.209359,95530.0,95520.0,0.10264569]
[1740168987744,0.157017,95531.0,95520.0,0.10264569]
[1740168987948,0.209351,95534.0,95520.0,0.10264569]
[1740168988189,0.157022,95528.0,95520.0,0.10264569]
[1740168988536,0.16786097,95540.0,95520.0,0.10264569]
[1740168988537,0.157023,95527.0,95520.0,0.10264569]
[1740168988775,0.209338,95539.0,95520.0,0.10764569]
[1740168988932,0.16786097,95540.0,95520.0,0.10664569]
[1740168989340,0.001,95528.0,95520.0,0.11364569]
[1740168989581,0.001,95528.0,95520.0,0.10964569]
[1740168989757,0.16786097,95540.0,95520.0,0.10264569]
[1740168989967,0.157018,95531.0,95520.0,0.10764569]
[1740168990186,0.157019,95530.0,95520.0,0.10764569]
[1740168990384,0.001,95527.0,95520.0,0.10964569]
[1740168991289,0.158024,95527.0,95520.0,0.11134489]
[1740168991612,0.001,95527.0,95520.0,0.11134489]
[1740168991819,0.001,95528.0,95520.0,0.11134489]
[1740168992032,0.157013,95533.0,95520.0,0.10434489]
[1740168992175,0.001,95527.0,95520.0,0.11834489]
[1740168992382,0.001,95527.0,95521.0,0.01454085]
[1740168992581,0.001,95527.0,95526.0,0.48519647]
[1740168992948,0.001,95527.0,95526.0,0.50411154]
[1740168993635,0.11444415,95549.0,95527.0,0.16454085]
[1740168993827,0.11444415,95549.0,95530.0,0.16454085]
[1740168994050,0.11444415,95549.0,95531.0,0.31200169]
[1740168994233,0.12482412,95549.0,95544.0,0.156995]
[1740168994387,0.12482412,95549.0,95544.0,0.10264569]
[1740168995182,0.156991,95547.0,95544.0,0.10264569]
[1740168995387,0.156991,95547.0,95544.0,0.10764569]
[1740168995644,0.156994,95545.0,95544.0,0.009]
[1740168996160,0.157002,95540.0,95529.0,0.01454085]
[1740168996353,0.12482412,95549.0,95544.0,0.005]
[1740168996627,0.156994,95545.0,95544.0,0.01]
[1740168996831,0.156994,95545.0,95544.0,0.005]
[1740168997001,0.156997,95543.0,95531.0,0.16454085]
[1740168997181,0.209325,95546.0,95533.0,0.01454085]
[1740168997381,0.156995,95544.0,95534.0,0.10264569]
[1740168997586,0.156989,95548.0,95534.0,0.10264569]
[1740168997787,0.12482412,95549.0,95534.0,0.10264569]
[1740168997989,0.157,95541.0,95534.0,0.10264569]
[1740168998189,0.156999,95542.0,95534.0,0.10264569]
[1740168998394,0.12482412,95549.0,95534.0,0.10264569]
[1740168998593,0.156994,95545.0,95544.0,0.01]
[1740168998963,0.11444415,95549.0,95544.0,0.10264569]
[1740168999158,0.11444415,95549.0,95545.0,0.10264569]
[1740168999611,0.11444415,95549.0,95546.0,0.01454085]
[1740168999814,0.11444415,95549.0,95548.0,0.17152985]
[1740169000013,0.11444415,95549.0,95548.0,0.27417554]
[1740169001129,0.11444415,95549.0,95548.0,0.11718654]
[1740169001360,0.11444415,95549.0,95548.0,0.10264569]
[1740169001775,0.11444415,95549.0,95548.0,0.10964569]
[1740169002093,0.11444415,95549.0,95548.0,0.11664569]
[1740169002294,0.11444415,95549.0,95548.0,0.10264569]
[1740169002507,0.11444415,95549.0,95548.0,0.11664569]
[1740169002914,0.11444415,95549.0,95548.0,0.014]
[1740169003163,0.27228095,95549.0,95548.0,0.014]
[1740169003569,0.30242825,95549.0,95548.0,0.014]
[1740169004387,0.27228095,95549.0,95548.0,0.014]
[1740169004725,0.27228095,95549.0,95548.0,0.007]
[1740169005135,0.27228095,95549.0,95548.0,0.014]
[1740169005340,0.27228095,95549.0,95548.0,0.007]
[1740169005548,0.27228095,95549.0,95548.0,0.014]
[1740169006315,0.42228095,95549.0,95548.0,0.007]
[1740169006544,0.95148169,95549.0,95548.0,0.007]
[1740169007352,0.157033,95521.0,95520.0,0.0016992]
[1740169008424,0.3670456,95524.0,95520.0,0.0016992]
[1740169008838,0.209373,95523.0,95520.0,0.0016992]
[1740169009042,0.157033,95521.0,95520.0,0.0016992]
[1740169009467,0.00655608,95523.0,95520.0,0.0086992]
[1740169009640,0.157033,95521.0,95520.0,0.0086992]
[1740169009841,0.157033,95521.0,95520.0,0.0156992]
[1740169010041,0.157033,95521.0,95520.0,0.0086992]
[1740169010486,0.157033,95521.0,95520.0,0.0156992]
[1740169011015,0.16358908,95521.0,95520.0,0.0156992]
[1740169011250,0.00655608,95521.0,95520.0,0.0156992]
[1740169011382,0.16358908,95521.0,95520.0,0.0226992]
[1740169011800,0.31358908,95521.0,95520.0,0.0226992]
[1740169012074,0.4241663,95521.0,95520.0,0.0226992]
[1740169012584,0.41761022,95521.0,95520.0,0.0226992]
[1740169012752,0.44839898,95521.0,95520.0,0.0226992]
[1740169012957,0.41761022,95521.0,95520.0,0.0226992]
[1740169013694,0.44031022,95521.0,95520.0,0.0226992]
[1740169015160,0.44686792,95521.0,95520.0,0.0226992]
[1740169015560,0.19422223,95521.0,95520.0,0.0226992]
[1740169015761,0.17152223,95521.0,95520.0,0.0226992]
[1740169015960,0.1635907,95521.0,95520.0,0.0226992]
[1740169018123,0.0065577,95521.0,95520.0,0.35887989]
[1740169018327,0.0065577,95521.0,95520.0,0.37342074]
[1740169018972,0.157006,95538.0,95525.0,0.157026]
[1740169019182,0.21996891,95541.0,95526.0,0.10264569]
[1740169019382,0.01063391,95541.0,95526.0,0.10264569]
[1740169019492,0.32443095,95549.0,95526.0,0.31201169]
[1740169019695,0.11511395,95549.0,95526.0,0.10264569]
[1740169019901,0.11511395,95549.0,95527.0,0.01454085]
[1740169020100,0.12552831,95549.0,95529.0,0.01454085]
[1740169020327,0.156998,95543.0,95530.0,0.10264569]
[1740169020526,0.156994,95545.0,95530.0,0.10264569]
[1740169020938,0.209325,95546.0,95530.0,0.10264569]
[1740169021168,0.156996,95544.0,95530.0,0.10264569]
[1740169021572,0.11511395,95549.0,95531.0,0.01454085]
[1740169021772,0.11511395,95549.0,95543.0,0.0788]
[1740169022027,0.11511395,95549.0,95547.0,0.15699]
[1740169022357,0.11511395,95549.0,95548.0,0.20091716]
[1740169022754,0.11511395,95549.0,95548.0,0.39871716]
[1740169023302,0.11011395,95549.0,95548.0,0.39871716]
[1740169023701,0.11011395,95549.0,95548.0,0.47411716]
[1740169023906,0.11011395,95549.0,95548.0,0.48111716]
[1740169024501,0.11011395,95549.0,95548.0,0.48811716]
[1740169024856,0.11011395,95549.0,95548.0,0.48111716]
[1740169025071,0.11011395,95549.0,95548.0,0.47411716]
[1740169025417,0.11011395,95549.0,95548.0,0.48111716]
[1740169025618,0.11011395,95549.0,95548.0,0.48811716]
[1740169026797,0.11011395,95549.0,95548.0,0.48111716]
[1740169026999,0.0008498,95549.0,95548.0,0.48111716]
[1740169027172,0.0008498,95549.0,95548.0,0.48811716]
[1740169028192,0.0008498,95549.0,95548.0,0.35658654]
[1740169029646,0.0008498,95549.0,95548.0,0.19204569]
[1740169029844,0.0008498,95549.0,95548.0,0.014]
[1740169030586,0.19455008,95549.0,95548.0,0.007]
[1740169030982,0.156989,95548.0,95547.0,4e-07]
[1740169031179,0.85278038,95548.0,95547.0,4e-07]
[1740169032195,0.75013469,95548.0,95547.0,4e-07]
[1740169033045,0.75433069,95548.0,95547.0,4e-07]
[1740169033414,0.73433069,95548.0,95547.0,0.0020004]
[1740169033567,0.73433069,95548.0,95547.0,0.0030004]
[1740169034439,0.627489,95548.0,95547.0,0.0030004]
[1740169035206,0.38196752,95548.0,95547.0,0.0030004]
[1740169035388,0.477489,95548.0,95547.0,0.0030004]
[1740169035723,0.477489,95548.0,95547.0,0.0029004]
[1740169036474,0.58013469,95548.0,95547.0,0.0029004]
[1740169037519,0.75559623,95548.0,95547.0,3.8e-07]
[1740169038143,0.77559623,95548.0,95547.0,3.8e-07]
[1740169038924,0.73559623,95548.0,95547.0,3.8e-07]
[1740169040283,0.73559623,95548.0,95547.0,0.00170118]
[1740169040886,0.75559623,95548.0,95547.0,0.00170118]
[1740169043753,0.76495623,95548.0,95547.0,1.8e-07]
[1740169045460,0.157033,95521.0,95520.0,0.0016992]
[1740169045653,1.66202546,95521.0,95520.0,0.0016992]
[1740169046288,1.67245067,95521.0,95520.0,0.0016992]
[1740169046691,1.67345067,95521.0,95520.0,0.0086992]
[1740169046848,1.67345067,95521.0,95520.0,0.0156992]
[1740169050048,0.53557361,95521.0,95520.0,0.0156992]
[1740169050252,0.6382193,95521.0,95520.0,0.0156992]
[1740169050509,0.74086499,95521.0,95520.0,0.0156992]
[1740169050644,0.7882193,95521.0,95520.0,0.0156992]
[1740169051964,0.79622366,95521.0,95520.0,0.0156992]
[1740169053472,1.11672366,95521.0,95520.0,0.0156992]
[1740169053678,0.02,95518.0,95501.0,0.0017002]
[1740169053823,0.157064,95502.0,95501.0,0.00213512]
[1740169054027,0.62690129,95502.0,95501.0,0.00213512]
[1740169055751,0.62690129,95502.0,95501.0,0.00513512]
[1740169055752,0.62790129,95502.0,95501.0,0.00513512]
[1740169055949,0.62890129,95502.0,95501.0,0.01213512]
[1740169056556,0.63826129,95502.0,95501.0,0.01213512]
[1740169057335,0.3785516,95502.0,95501.0,0.01213512]
[1740169057915,0.5356156,95502.0,95501.0,0.01213512]
[1740169058791,0.3785516,95502.0,95501.0,0.01213512]
[1740169059386,0.3851097,95502.0,95501.0,0.01213512]
[1740169059584,0.5421737,95502.0,95501.0,0.01213512]
[1740169059796,0.5328137,95502.0,95501.0,0.01213512]
[1740169060477,0.3757497,95502.0,95501.0,0.01213512]
[1740169060844,0.5328137,95502.0,95501.0,0.01213512]
[1740169061673,0.3757497,95502.0,95501.0,0.01213512]
[1740169061891,0.3757497,95502.0,95501.0,0.09523512]
[1740169062098,0.0085581,95502.0,95501.0,0.40484681]
[1740169062400,0.0085581,95502.0,95501.0,0.24778081]
[1740169062763,0.0085581,95502.0,95501.0,0.40484681]
[1740169063376,0.002,95502.0,95501.0,0.40484681]
[1740169063836,0.002,95502.0,95501.0,1.40484681]
[1740169065571,0.002,95502.0,95501.0,1.24778081]
[1740169066292,0.002,95502.0,95501.0,1.40484681]
[1740169067560,0.002,95502.0,95501.0,1.24778081]
[1740169068103,0.002,95502.0,95501.0,1.14513512]
[1740169068309,0.159064,95502.0,95501.0,1.01213512]
[1740169068652,0.5262287,95502.0,95501.0,1.01213512]
[1740169069099,0.5252287,95502.0,95501.0,1.00913512]
[1740169069263,0.5252287,95502.0,95501.0,1.00513512]
[1740169069462,0.5262287,95502.0,95501.0,1.01213512]
[1740169069719,0.5252287,95502.0,95501.0,1.00913512]
[1740169070061,0.5252287,95502.0,95501.0,1.01213512]
[1740169070062,0.5262287,95502.0,95501.0,1.01213512]
[1740169070461,0.62887439,95502.0,95501.0,1.01213512]
[1740169071945,0.5262287,95502.0,95501.0,1.01213512]
[1740169080259,0.54261546,95502.0,95501.0,1.01213512]
[1740169080911,0.3691647,95502.0,95501.0,1.09163512]
[1740169081111,0.002,95502.0,95501.0,1.09163512]
[1740169082028,0.159064,95502.0,95501.0,1.09163512]
[1740169082210,0.5262082,95502.0,95501.0,1.09163512]
[1740169082363,0.5262082,95502.0,95501.0,1.01213512]
[1740169084327,0.38552954,95502.0,95501.0,1.01213512]
[1740169084524,0.002,95502.0,95501.0,1.01213512]
[1740169084950,0.002,95502.0,95501.0,1.21082166]
[1740169085933,0.001,95502.0,95501.0,1.20782166]
[1740169086414,0.002,95502.0,95501.0,1.21082166]
[1740169086630,0.001,95502.0,95501.0,1.35782166]
[1740169086840,0.209382,95519.0,95502.0,0.15]
[1740169087039,0.0008506,95520.0,95503.0,0.11718654]
[1740169087312,0.209382,95519.0,95503.0,0.11718654]
[1740169087543,0.16871157,95520.0,95503.0,0.10264569]
[1740169087656,0.16871157,95520.0,95501.0,1.09363512]
[1740169087855,0.157048,95512.0,95502.0,0.10264569]
[1740169088471,0.16871157,95520.0,95502.0,0.10264569]
[1740169088672,0.16871157,95520.0,95502.0,0.10864569]
[1740169088924,0.16871157,95520.0,95503.0,0.006]
[1740169089171,0.157061,95504.0,95503.0,0.006]
[1740169089442,0.5241855,95504.0,95503.0,0.006]
[1740169089675,0.157063,95503.0,95502.0,0.014]
[1740169089878,0.3671245,95504.0,95502.0,0.014]
[1740169090085,0.3671245,95504.0,95502.0,0.013]
[1740169090362,0.5241855,95504.0,95503.0,0.007]
[1740169090537,0.32770044,95504.0,95503.0,0.007]
[1740169091563,0.32770044,95504.0,95501.0,1.00213512]
[1740169091564,0.157064,95502.0,95501.0,1.00213512]
[1740169093231,0.157064,95502.0,95501.0,1.00713512]
[1740169093411,0.157064,95502.0,95501.0,1.01113512]
[1740169093778,0.26753618,95502.0,95501.0,1.01113512]
[1740169095177,0.27689618,95502.0,95501.0,1.01113512]
[1740169097668,0.74739618,95502.0,95501.0,0.13692512]
[1740169098708,0.74739618,95502.0,95501.0,0.13192512]
[1740169098906,0.74739618,95502.0,95501.0,0.13692512]
[1740169099117,0.74739618,95502.0,95501.0,0.13292512]
[1740169099471,0.74739618,95502.0,95501.0,0.13692512]
[1740169100657,1.78262755,95502.0,95501.0,0.13692512]
[1740169101634,1.79901513,95502.0,95501.0,0.13692512]
[1740169103916,1.78965513,95502.0,95501.0,0.13692512]
[1740169104333,1.79901513,95502.0,95501.0,0.13692512]
[1740169105031,1.78262755,95502.0,95501.0,0.13692512]
[1740169107985,1.77326755,95502.0,95501.0,0.13692512]
[1740169108234,1.78262755,95502.0,95501.0,0.13692512]
[1740169108525,0.307079,95493.0,95492.0,0.001]
[1740169110094,0.54075136,95475.0,95474.0,0.0823304]
[1740169110867,0.54175136,95475.0,95474.0,0.0873304]
[1740169111078,0.55232374,95475.0,95474.0,0.0111304]
[1740169111298,0.55332374,95475.0,95474.0,0.0111304]
[1740169111502,0.38564236,95475.0,95474.0,0.0111304]
[1740169112863,0.01838946,95475.0,95474.0,0.0111304]
[1740169113270,0.01838946,95475.0,95474.0,0.0916304]
[1740169113495,0.01838946,95475.0,95474.0,0.2972404]
[1740169113700,0.01838946,95475.0,95474.0,0.39988609]
[1740169114042,0.002,95475.0,95474.0,0.41442694]
[1740169114394,0.01638906,95478.0,95474.0,0.40342694]
[1740169114609,0.01638906,95478.0,95477.0,0.08373062]
[1740169114785,0.01638906,95478.0,95477.0,0.18437631]
[1740169115150,0.157073,95497.0,95477.0,0.34148131]
[1740169115312,0.00936,95501.0,95477.0,0.18437631]
[1740169115494,0.157073,95497.0,95477.0,0.18437631]
[1740169115693,0.00936,95501.0,95477.0,0.18437631]
[1740169115893,0.00867729,95502.0,95477.0,0.18437631]
[1740169116106,0.01803729,95502.0,95477.0,0.10264569]
[1740169116312,0.01803729,95502.0,95478.0,0.157103]
[1740169116313,0.209421,95501.0,95478.0,0.157103]
[1740169116757,0.157076,95495.0,95477.0,0.10264569]
[1740169116997,0.157076,95495.0,95477.0,0.26675069]
[1740169117182,0.157076,95495.0,95477.0,0.25975069]
[1740169117509,0.157076,95495.0,95478.0,0.003]
[1740169118009,0.01030671,95495.0,95478.0,0.003]
[1740169118204,0.157075,95496.0,95478.0,0.003]
[1740169118930,0.157075,95496.0,95477.0,0.10264569]
[1740169119139,0.16786097,95490.0,95474.0,0.1291304]
[1740169119346,0.209435,95495.0,95474.0,0.1291304]
[1740169119570,0.22563263,95496.0,95474.0,0.1291304]
[1740169119781,0.157079,95493.0,95477.0,0.005]
[1740169120292,0.209426,95499.0,95477.0,0.005]
[1740169120293,0.01034159,95499.0,95477.0,0.10264569]
[1740169120527,0.477567,95501.0,95478.0,0.157104]
[1740169120722,0.001,95490.0,95479.0,0.0777]
[1740169121228,0.3205,95501.0,95479.0,0.0777]
[1740169121405,0.01058896,95499.0,95479.0,0.0777]
[1740169121608,0.3205,95501.0,95480.0,0.10264569]
[1740169121821,0.3205,95501.0,95481.0,0.01454085]
[1740169121998,0.33083716,95501.0,95482.0,0.10264569]
[1740169122553,0.15707,95499.0,95486.0,0.08373062]
[1740169122759,0.33083716,95501.0,95486.0,0.08373062]
[1740169122961,0.001,95490.0,95486.0,0.08373062]
[1740169123396,0.000851,95499.0,95486.0,0.08373062]
[1740169123768,0.000851,95499.0,95486.0,0.08673062]
[1740169124612,0.000851,95499.0,95486.0,0.09073062]
[1740169130359,0.000851,95499.0,95490.0,0.15]
[1740169130562,0.000851,95499.0,95498.0,0.17161185]
[1740169130769,0.000851,95499.0,95498.0,0.19488654]
[1740169131170,0.000851,95499.0,95498.0,0.35195754]
[1740169133182,0.000851,95499.0,95498.0,0.19488654]
[1740169133343,0.000851,95499.0,95498.0,0.35695754]
[1740169134527,0.000851,95499.0,95498.0,0.36195754]
[1740169135907,0.000851,95499.0,95498.0,0.50695754]
[1740169136467,0.000851,95499.0,95498.0,0.50195754]
[1740169136830,0.000851,95499.0,95498.0,0.50795754]
[1740169137031,0.000851,95499.0,95498.0,0.51395754]
[1740169137263,0.000851,95499.0,95498.0,0.50795754]
[1740169137668,0.000851,95499.0,95498.0,0.50895754]
[1740169137816,0.000851,95499.0,95498.0,0.51595754]
[1740169138783,0.000851,95499.0,95498.0,0.35888654]
[1740169139893,0.000851,95499.0,95498.0,0.51595754]
[1740169140496,0.000851,95499.0,95498.0,0.51500754]
[1740169141893,0.000851,95499.0,95498.0,0.88450754]
[1740169142709,0.000851,95499.0,95498.0,0.87750754]
[1740169143261,0.000851,95499.0,95498.0,0.88450754]
[1740169143879,0.000851,95499.0,95498.0,0.87750754]
[1740169144087,0.000851,95499.0,95498.0,0.88450754]